Workbook

Sheet от 1года до 3 лет
A1: Утверждаю | H1: Согласовано
A2: Директор ООО"ФУДСОЦСЕРВИС" | H2: Руководитель дошкольной образовательной
A3: Харламова Э.Р. | H3: организации
D6: Примерное 10-дневное меню
D7: для организации питания детей в дошкольных учреждениях
D8: с 8-10,5 - часовым пребыванием от 1 года до 3 лет
A10: День 1 - ый
A11: Наименование блюд и | C11: Масса | D11: Кол - во | E11: Кол - во | F11: Пищевые вещества | I11: Энергетическая | J11: витамин | K11: Сборник
A12: продуктов | C12: порции | D12: (в гр ) | E12: (в гр ) | I12: ценность | K12: рецептур
D13: брутто | E13: нетто | F13: белки | G13: жиры | H13: угл-ды | I13: Ккал | J13: С
B14: ЗАВТРАК
A15: Каша "Дружба" молочная с маслом сливочным | C15: 140/3 | F15: 3.80 | G15: 3.26 | H15: 22.56 | I15: 136.02 | J15: 0.60 | K15: ТТК №7Д
B16: Крупа рисовая | D16: 10 | E16: 10
B17: Крупа пшенная | D17: 7.5 | E17: 7.5
B18: Молоко | D18: 75 | E18: 75
B19: Вода | D19: 48 | E19: 48
B20: Сахар | D20: 2 | E20: 2
B21: соль иодированная | D21: 0.4 | E21: 0.4
B22: Масло сливочное | D22: 3 | E22: 3
A23: Кофейный напиток с молоком | C23: 180 | F23: 2.85 | G23: 2.41 | H23: 10.35 | I23: 74.58 | J23: 1.17 | K23: №414 сб дошк,2016
B24: Кофейный напиток | D24: 2.50 | E24: 2.50
B25: Сахар | D25: 6.00 | E25: 6.00
B26: Молоко | D26: 90.00 | E26: 90.00
B27: Вода | D27: 108.00 | E27: 108.00
A28: Бутерброд с маслом сливочным | C28: 25/5 | F28: 1.92 | G28: 4.36 | H28: 12.92 | I28: 98.50 | K28: №1 Дели сб дошк 2016
B29: Батон нарезной | D29: 25 | E29: 25
B30: Масло сливочное | D30: 5 | E30: 5
A31: Итого: | C31: 353 | F31: =F28+F23+F15 -> 8.56 | G31: =G28+G23+G15 -> 10.03 | H31: 45.83 | I31: 309.10 | J31: 1.77
B32: 2 - ой ЗАВТРАК
A33: Кисломолочный напиток | C33: 150/2 | F33: 4.35 | G33: 3.75 | H33: 7.98 | I33: 82.98 | J33: 1.05 | K33: №420 Сб дошк 2016
A34: (Кефир,ряженка,катык, йогурт/напиток ацидофильный) | B34: кисломолочный напиток | D34: 155 | E34: 150
B35: сахар | D35: 2 | E35: 2
A36: Итого: | C36: 152 | F36: =F33 -> 4.35 | G36: =G33 -> 3.75 | H36: 7.98 | I36: 82.98 | J36: 1.05
B37: ОБЕД
A38: Салат из моркови с яблоками | C38: 40 | F38: 0.43 | G38: 0.07 | H38: 3.45 | I38: 16.16 | J38: 2.50 | K38: №39,сб дошк2016
B39: морковь | D39: 37.50 | E39: 30.00
B40: яблоки | D40: 11.40 | E40: 10.00
B41: сахар | D41: 0.40 | E41: 0.40
A42: Суп со звездочками, с картофелем с куриными фрикадельками | C42: 150/10 | F42: 3.21 | G42: 5.77 | H42: 12.88 | I42: 123.35 | J42: 5.38 | K42: №88 СБ дошк 2016
B43: цыплята - бройлеры с/м | D43: 17.5 | E43: 11.4
B44: или фарш куриный | D44: 11.4 | E44: 11.4
B45: Лук репчатый | D45: 1.19 | E45: 1
B46: Яйцо | D46: 0.96 | E46: 0.8
B47: Вода для фарша | D47: 1 | E47: 1
B48: соль иодированная | D48: 0.1 | E48: 0.1
B49: масса готовых фрикаделек | E49: 10
B50: Картофель | D50: 59.90 | E50: 45.00
B51: Морковь | D51: 7.50 | E51: 6.00
B52: Лук репчатый | D52: 7.14 | E52: 6.00
B53: суповая засыпка (звездочки) | D53: 6.00 | E53: 6.00
B54: Масло растительное | D54: 3.00 | E54: 3.00
B55: соль иодированная | D55: 1.00 | E55: 1.00
B56: Вода | D56: 114.00 | E56: 114.00
A57: Котлеты рубленные из говядины | C57: 50 | F57: 5.74 | G57: 6.21 | H57: 6.54 | I57: 111.71 | K57: СБ дошкольн. №299, 2016
B58: говядина (котлетное мясо б/к) | D58: 36.57 | E58: 35
B59: или фарш говяжий | D59: 35 | E59: 35
B60: лук репчатый | D60: 10.4 | E60: 8.75
B61: Хлеб пшеничный | D61: 8.13 | E61: 8.13
B62: Вода | D62: 5.2 | E62: 5.2
B63: сухари панировочные | D63: 2.8 | E63: 2.8
B64: соль иодированная | D64: 0.4 | E64: 0.4
B65: масса полуфабриката | E65: 61.9
B66: Масло растительное | D66: 0.60 | E66: 0.60
A67: Пюре Картофельное | C67: 120 | F67: 2.06 | G67: 3.84 | H67: 16.36 | I67: 109.84 | J67: 14.53 | K67: № 339 СБ дошк 2016
B68: Картофель | D68: 136.8 | E68: 102.6
B69: Молоко | D69: 18.96 | E69: 18
B70: Масло сливочное | D70: 4.2 | E70: 4.2
B71: соль иодированная | D71: 0.45 | E71: 0.45
A72: Напиток из сухофруктов | C72: 150 | F72: 0.50 | G72: 0.07 | H72: 17.34 | I72: 57 | J72: 0.54 | K72: №394 Сб дошк 2016
B73: сухофрукты | D73: 12.75 | E73: 12.50
B74: Сахар | D74: 5.00 | E74: 5.00
B75: вода | D75: 152.00 | E75: 152.00
A76: Хлеб пшеничный | C76: 20 | D76: 20.0 | E76: 20.0 | F76: 1.52 | G76: 0.16 | H76: 9.84 | I76: 47.00 | J76: 0.00 | K76: табл 6 стр 134,Дели + 2012
A77: Хлеб ржаной | C77: 30 | D77: 30 | E77: 30 | F77: 1.98 | G77: 0.36 | H77: 11.89 | I77: 59.46 | K77: табл 6 стр 144,Дели + 2012
A78: Итого: | C78: 570 | F78: =F38+F42+F57+F67+F72+F77+F76 -> 15.45 | G78: =G38+G42+G57+G67+G72+G77+G76 -> 16.49 | H78: 78.30 | I78: 524.34 | J78: 22.95
B79: ПОЛДНИК
A80: Запеканка творожная с повидлом | C80: 110/20 | F80: 4.52 | G80: 4.97 | H80: 21.93 | I80: 140.09 | J80: 0.61 | K80: № 251 сб дошк 2016
B81: Творог | D81: 103.20 | E81: 101.20
B82: крупа манная | D82: 6.60 | E82: 6.60
B83: Яйцо | D83: 5.28 | E83: 4.40
B84: Сахар | D84: 8.80 | E84: 8.80
B85: Сметана | D85: 4.40 | E85: 4.40
B86: Масло сливочное | D86: 4.40 | E86: 4.40
B87: Сухари панировочные | D87: 4.40 | E87: 4.40
B88: соль иодированная | D88: 0.55 | E88: 0.55
B89: повидло | D89: 20.00 | E89: 20.00
A90: Чай с сахаром | C90: 150/5 | F90: 0.04 | G90: 0.01 | H90: 5.01 | I90: 19.95 | J90: 0.02 | K90: №392 Дели2010
B91: чай весовой | D91: 0.40 | E91: 0.40
B92: Сахар | D92: 5.00 | E92: 5.00
B93: Вода | D93: 150.00 | E93: 150.00
A94: Сок | C94: 200 | D94: 200 | E94: 200 | F94: 1.00 | H94: 20.20 | I94: 84.45 | J94: 4 | K94: №418 сб дошк 2016
A95: в ассортименте в инд.упаковке
A96: Итого: | C96: 485 | F96: =F80+F94+F90 -> 5.56 | G96: =G80+G94+G90 -> 4.98 | H96: 47.15 | I96: 244.49 | J96: 4.63
A97: ВСЕГО: | C97: =C31+C36+C78+C96 -> 1560 | F97: =F31+F36+F78+F96 -> 33.92 | G97: =G31+G36+G78+G96 -> 35.24 | H97: =H31+H36+H78+H96 -> 179.25 | I97: =I31+I36+I78+I96 -> 1160.91 | J97: =J31+J36+J78+J96 -> 30.40
A99: День 2- ой
A100: Наименование блюд и | C100: Масса | D100: Кол - во | E100: Кол - во | F100: Пищевые вещества | I100: Энергетическая | J100: Витамин | K100: Сборник
A101: продуктов | C101: порции | D101: (в гр ) | E101: (в гр ) | I101: ценность | K101: рецептур
D102: брутто | E102: нетто | F102: белки | G102: жиры | H102: угл-ды | I102: Ккал | J102: С
B103: ЗАВТРАК
A104: Каша полбяная молочная с маслом сливочным | C104: 140/3 | F104: 2.21 | G104: 2.02 | H104: 24.11 | I104: 123.31 | J104: 0.67 | K104: ТТК №1Д
B105: Крупа полбяная | D105: 18 | E105: 18
B106: Молоко | D106: 75 | E106: 75
B107: вода | D107: 48 | E107: 48
B108: Сахар | D108: 2 | E108: 2
B109: соль иодированная | D109: 0.4 | E109: 0.4
B110: Масло сливочное | D110: 3 | E110: 3
A111: Какао с молоком | C111: 180 | F111: 3.67 | G111: 3.19 | H111: 10.87 | I111: 90.78 | J111: 1.43 | K111: №416 сб дошк2016
B112: Какао-порошок | D112: 2.00 | E112: 2.00
B113: Сахар | D113: 6.00 | E113: 6.00
B114: Молоко | D114: 110.00 | E114: 110.00
B115: Вода | D115: 80.00 | E115: 80.00
A116: Бутерброд с сыром, маслом сливочным | C116: 25/5/5 | F116: 2.53 | G116: 5.69 | H116: 12.92 | I116: 115.67 | J116: 0.07 | K116: №3 сб дошк2016
B117: Батон нарезной | D117: 25 | E117: 25
B118: Сыр | D118: 5.1 | E118: 5
B119: Масло сливочное | D119: 5 | E119: 5
A120: Итого: | C120: 358 | F120: =F116+F111+F104 -> 8.41 | G120: =G116+G111+G104 -> 10.90 | H120: 47.90 | I120: 329.76 | J120: 2.17
B121: 2 - ой ЗАВТРАК
A122: Молоко кипяченое | C122: 150 | F122: 4.36 | G122: 3.76 | H122: 7.22 | I122: 80.45 | J122: 1.95 | K122: №419 Сб дошк 2016
A123: (молоко) | B123: молоко | D123: 158 | E123: 150
A124: Итого: | C124: 150 | F124: =F122 -> 4.36 | G124: =G122 -> 3.76 | H124: 7.22 | I124: 80.45 | J124: 1.95
B125: ОБЕД
A126: Салат из соленых огурцов с луком | C126: 30 | F126: 0.26 | G126: 1.53 | H126: 0.78 | I126: 17.94 | J126: 1.67 | K126: №20, сб дошк 2016
B127: Огурцы соленые | D127: 55,75/33,38 | E127: 26.70
B128: масса припущенных соленых огурцов | E128: 24.30
B129: Лук репчатый | D129: 5.64 | E129: 4.74
B130: масса бланшированного лука | E130: 4.50
B131: Масло растительное | D131: 1.50 | E131: 1.50
A132: Борщ со свежей капустой, картофелем на курином бульоне, со сметаной | C132: 150/7 | F132: 1.26 | G132: 4.00 | H132: 6.81 | I132: 73.55 | J132: 6.43 | K132: №63, сбдошк 2016
B133: Капуста свежая | D133: 15.0 | E133: 12.0
B134: Картофель | D134: 15.96 | E134: 12.0
B135: Морковь | D135: 7.5 | E135: 6.0
B136: Лук репчатый | D136: 7.14 | E136: 6.0
B137: Свекла | D137: 30.72 | E137: 24.0
B138: Сахар | D138: 1.8 | E138: 1.8
B139: Масло растительное | D139: 3.0 | E139: 3.0
B140: соль иодированная | D140: 1.5 | E140: 1.5
B141: Бульон | D141: 120 | E141: 120.0
B142: Сметана | D142: 7.0 | E142: 7.0
A143: Фрикадельки куриные в молочном соусе | C143: 40/20 | F143: 6.30 | G143: 6.24 | H143: 5.50 | I143: 103.28 | K143: № 305 сб дошк 2016
B144: цыплята - бройлеры с/м | D144: 45.6 | E144: 29.3
B145: Хлеб пшеничный | D145: 7.3 | E145: 7.3
B146: Вода | D146: 9.0 | E146: 9.0
B147: соль иодированная | D147: 0.3 | E147: 0.3
B148: Масса полуфабриката | E148: 46.0
B149: Масло растительное | D149: 0.6 | E149: 0.6
B150: Соус молочный: | E150: 20.0
B151: Молоко | D151: 10.0 | E151: 10.0
B152: Масло сливочное | D152: 1.04 | E152: 1.0
B153: Мука пшеничная | D153: 1.04 | E153: 1.0
B154: Вода | D154: 10.0 | E154: 10.0
B155: Сахар | D155: 0.2 | E155: 0.2
B156: соль иодированная | D156: 0.2 | E156: 0.2
A157: Макаронные изделия отварные с маслом сливочным | C157: 110/3 | F157: 3.18 | G157: 2.63 | H157: 23.41 | I157: 134.16 | K157: №219 Сб дошк.2016
B158: макаронные изделия | D158: 38.5 | E158: 38.5
B159: вода | D159: 231.0 | E159: 231.0
B160: соль иодированная | D160: 1.1 | E160: 1.1
B161: масло сливочное | D161: 3 | E161: 3
A162: Компот из свежих яблок | C162: 150 | F162: 0.11 | G162: 0.11 | H162: 7.78 | I162: 33.34 | J162: 2.85 | K162: №390 СБ дошк 2016
B163: яблоки свежие | D163: 28.50 | E163: 25.00
B164: вода | D164: 152.00 | E164: 152.00
B165: сахар | D165: 5.00 | E165: 5.00
A166: Хлеб пшеничный | C166: 20 | D166: 20.00 | E166: 20.00 | F166: 1.52 | G166: 0.16 | H166: 9.84 | I166: 47.00 | J166: 0.00 | K166: табл 6 стр 134,Дели + 2012
A167: Хлеб ржаной | C167: 30 | D167: 30 | E167: 30 | F167: 1.98 | G167: 0.36 | H167: 11.89 | I167: 59.46 | K167: табл 6 стр 144,Дели + 2012
A168: Итого: | C168: 560 | F168: =F126+F132+F143+F157+F162+F166+F167 -> 14.62 | G168: =G126+G132+G143+G157+G162+G166+G167 -> 15.04 | H168: =H126+H132+H143+H157+H162+H166+H167 -> 66.02 | I168: =I126+I132+I143+I157+I162+I166+I167 -> 468.73 | J168: =J126+J132+J143+J157+J162+J166+J167 -> 10.95
B169: ПОЛДНИК
A170: Булочка дорожная | C170: 50 | F170: 3.19 | G170: 4.58 | H170: 31.07 | I170: 160.50 | K170: №453 сб дошк2016
B171: Мука пшеничная | D171: 30.50 | E171: 30.00
B172: мука пшеничная на подпыл | D172: 1.00 | E172: 1.00
B173: Сахар | D173: 6.00 | E173: 6.00
B174: Масло сливочное | D174: 6.50 | E174: 6.50
B175: соль иодированная | D175: 0.30 | E175: 0.30
B176: дрожжи сухие | D176: 0.20 | E176: 0.20
B177: вода | D177: 15.30 | E177: 15.30
B178: масса полуфабриката | E178: 57.00
B179: для крошки:
B180: мука пшеничная | D180: 1.20 | E180: 1.20
B181: масло сливочное | D181: 1.00 | E181: 1.00
B182: масса крошки | E182: 2.00
B183: масло растительное для смазки изделй | D183: 1.00 | E183: 1.00
A184: Чай с сахаром и лимоном | C184: 150/5/5 | F184: 0.10 | G184: 0.02 | H184: 5.18 | I184: 21.89 | J184: 2.24 | K184: №393 Дели2010
B185: чай весовой | D185: 0.4 | E185: 0.4
B186: Сахар | D186: 5 | E186: 5
B187: лимон | D187: 5.55 | E187: 5
B188: Вода | D188: 150 | E188: 150
A189: Фрукты свежие | C189: 100 | D189: 100 | E189: 100 | F189: 2.70 | G189: 2.88 | H189: 12.47 | I189: 86.02 | J189: 10.00 | K189: №386 СБ
A190: (яблоки,или апельсин, или банан,или мандарин ) | K190: дошк.2016
A191: Итого: | C191: 310 | F191: =F170+F189+F184 -> 5.99 | G191: =G170+G189+G184 -> 7.48 | H191: 48.72 | I191: 268.41 | J191: 12.24
A192: ВСЕГО: | C192: =C120+C124+C168+C191 -> 1378 | F192: =F120+F124+F168+F191 -> 33.39 | G192: =G120+G124+G168+G191 -> 37.18 | H192: =H120+H124+H168+H191 -> 169.85 | I192: =I120+I124+I168+I191 -> 1147.35 | J192: =J120+J124+J168+J191 -> 27.31
A194: День 3 - ий
A195: Наименование блюд и | C195: Масса | D195: Кол - во | E195: Кол - во | F195: Пищевые вещества | I195: Энергетическая | J195: Витамин | K195: Сборник
A196: продуктов | C196: порции | D196: (в гр ) | E196: (в гр ) | I196: ценность | K196: рецептур
D197: брутто | E197: нетто | F197: белки | G197: жиры | H197: угл-ды | I197: Ккал | J197: С
B198: ЗАВТРАК
A199: Каша ячневая молочная с маслом сливочным | C199: 140/3 | F199: 3.05 | G199: 6.11 | H199: 19.47 | I199: 145.06 | K199: ТТК №10Д
B200: Крупа ячневая | D200: 17.5 | E200: 17.5
B201: Молоко | D201: 70 | E201: 70
B202: Вода | D202: 53 | E202: 53
B203: Сахар | D203: 2 | E203: 2
B204: соль иодированная | D204: 0.4 | E204: 0.4
B205: Масло сливочное | D205: 3 | E205: 3
... 755 more rows

Sheet от 3 до 7 лет
A1: Утверждаю | H1: Согласовано
A2: Директор ООО"ФУДСОЦСЕРВИС" | H2: Руководитель дошкольной образовательной
A3: Харламова Э.Р. | H3: организации
C8: Примерное 10-дневное меню
C9: для организации питания детей в дошкольных учреждениях
C10: с 8-10,5 - часовым пребыванием от 3 до 7 лет
A12: День 1 - ый
A13: Наименование блюд и | C13: Масса | D13: Кол - во | E13: Кол - во | F13: Пищевые вещества | I13: Энергетическая | J13: Витамин | K13: Сборник рецептур
A14: продуктов | C14: порции | D14: (в гр ) | E14: (в гр ) | I14: ценность
D15: брутто | E15: нетто | F15: белки | G15: жиры | H15: угл-ды | I15: Ккал | J15: С
B16: ЗАВТРАК
A17: Каша "Дружба" молочная с маслом сливочным | C17: 180/5 | F17: 5.44 | G17: 7.07 | H17: 28.40 | I17: 202.64 | J17: 0.86 | K17: ТТК №7Д
B18: Крупа рисовая | D18: 13.50 | E18: 13.50
B19: Крупа пшенная | D19: 10.00 | E19: 10.00
B20: Молоко | D20: 90.00 | E20: 90.00
B21: Вода | D21: 68.00 | E21: 68.00
B22: Сахар | D22: 2.50 | E22: 2.50
B23: соль иодированная | D23: 0.50 | E23: 0.50
B24: Масло сливочное | D24: 5 | E24: 5
A25: Кофейный напиток с молоком | C25: 180 | F25: 2.85 | G25: 2.41 | H25: 10.35 | I25: 74.58 | J25: 1.17 | K25: №414 сб дошк,2016
B26: Кофейный напиток | D26: 2.50 | E26: 2.50
B27: Сахар | D27: 6.00 | E27: 6.00
B28: Молоко | D28: 90.00 | E28: 90.00
B29: Вода | D29: 108.00 | E29: 108.00
A30: Бутерброд с маслом сливочным | C30: 30/5 | F30: 2.29 | G30: 4.50 | H30: 15.49 | I30: 111.60 | K30: №1 сб дошк,2016
B31: Батон нарезной | D31: 30.00 | E31: 30.00
B32: Масло сливочное | D32: 5.00 | E32: 5.00
A33: Итого: | C33: 400 | F33: =F17+F25+F30 -> 10.58 | G33: =G17+G25+G30 -> 13.98 | H33: 54.24 | I33: 388.82 | J33: 2.03
B34: 2 - ой ЗАВТРАК
A35: Кисломолочный напиток | C35: 180/3 | F35: 5.22 | G35: 4.50 | H35: 10.17 | I35: 101.97 | J35: 1.26 | K35: №420 СБ дошк 2016
A36: (Кефир,ряженка,катык,йогурт/ напиток ацидофильный) | B36: кисломолочный напиток | D36: 185.00 | E36: 180.00
B37: сахар | D37: 3.00 | E37: 3.00
A38: Итого: | C38: 183 | F38: =F35 -> 5.22 | G38: =G35 -> 4.50 | H38: 10.17 | I38: 101.97 | J38: 1.26
B39: ОБЕД
A40: Салат из моркови с яблоками | C40: 60 | F40: 0.65 | G40: 0.11 | H40: 5.17 | I40: 24.24 | J40: 3.75 | K40: №39,сб дошк2016
B41: морковь | D41: 56.28 | E41: 45.00
B42: яблоки | D42: 17.10 | E42: 15.00
B43: сахар | D43: 0.60 | E43: 0.60
A44: Суп со звездочками, с картофелем с куриными фрикадельками | C44: 180/15 | F44: 3.91 | G44: 7.04 | H44: 15.72 | I44: 150.49 | J44: 6.59 | K44: №88,сб дошк2016
B45: цыплята - бройлеры с/м | D45: 26.3 | E45: 17.1
B46: или фарш куриный | D46: 17.1 | E46: 17.1
B47: Лук репчатый | D47: 1.79 | E47: 1.5
B48: Яйцо | D48: 1.44 | E48: 1.2
B49: Вода для фарша | D49: 1.5 | E49: 1.5
B50: соль иодированная | D50: 0.15 | E50: 0.15
B51: Масса полуфабриката | E51: 21.5
B52: масса готовых фрикаделек | E52: 15
B53: Картофель | D53: 79.80 | E53: 60.00
B54: Морковь | D54: 10.00 | E54: 8.00
B55: Лук репчатый | D55: 9.52 | E55: 8.00
B56: суповая засыпка (звездочки) | D56: 8.00 | E56: 8.00
B57: Масло растительное | D57: 4.00 | E57: 4.00
B58: соль иодированная | D58: 1.20 | E58: 1.20
B59: Вода | D59: 132.00 | E59: 132.00
A60: Котлеты рубленые из говядины | C60: 70 | F60: 8.03 | G60: 8.70 | H60: 9.16 | I60: 173.20 | K60: СБ дошкольн. №299, 2016
B61: говядина б/к (котлетное мясо) | D61: 51.16 | E61: 49
B62: или фарш говяжий | D62: 49 | E62: 49
B63: Лук репчатый | D63: 14.64 | E63: 12.3
B64: Хлеб пшеничный | D64: 11 | E64: 11
B65: Вода | D65: 14.7 | E65: 14.7
B66: Сухари панировочные | D66: 4.00 | E66: 4.00
B67: соль иодированная | D67: 0.7 | E67: 0.7
B68: масса полуфабриката | E68: 75.3
B69: масло растительное | D69: 1 | E69: 1
A70: Пюре Картофельное | C70: 140 | F70: 2.76 | G70: 4.48 | H70: 19.08 | I70: 128.15 | J70: 16.96 | K70: № 339 СБ дошк 2016
B71: Картофель | D71: 159.60 | E71: 119.70
B72: Молоко | D72: 22.12 | E72: 21.00
B73: Масло сливочное | D73: 5.00 | E73: 5.00
B74: соль иодированная | D74: 0.52 | E74: 0.52
A75: Напиток из сухофруктов | C75: 180 | F75: 0.60 | G75: 0.08 | H75: 20.81 | I75: 68 | J75: 0.65 | K75: №394 Сб дошк 2016
B76: сухофрукты | D76: 15.30 | E76: 15.00
B77: Сахар | D77: 6.00 | E77: 6.00
B78: вода | D78: 183.00 | E78: 183.00
A79: Хлеб пшеничный | C79: 20 | D79: 20.0 | E79: 20.0 | F79: 1.52 | G79: 0.16 | H79: 9.84 | I79: 47.00 | J79: 0.00 | K79: табл 6 стр 134,Дели + 2012
A80: Хлеб ржаной | C80: 35 | D80: 35.00 | E80: 35.00 | F80: 2.31 | G80: 0.42 | H80: 13.85 | I80: 69.23 | K80: табл 6 стр 144,Дели + 2012
A81: Итого: | C81: 700 | F81: =F40+F44+F60+F70+F75+F79+F80 -> 19.78 | G81: =G40+G44+G60+G70+G75+G79+G80 -> 20.99 | H81: 93.62 | I81: 660.49 | J81: 27.95
B82: ПОЛДНИК
A83: Запеканка творожная с повидлом | C83: 130/20 | F83: 5.62 | G83: 6.06 | H83: 25.22 | I83: 172.60 | J83: 0.66 | K83: №251, сбдошк 2016
B84: Творог | D84: 121.55 | E84: 119.20
B85: Крупа манная | D85: 7.80 | E85: 7.80
B86: Яйцо | D86: 6.50 | E86: 5.42
B87: Сахар | D87: 10.40 | E87: 10.40
B88: Сметана | D88: 5.20 | E88: 5.20
B89: Масло сливочное | D89: 5.20 | E89: 5.20
B90: Сухари панировочные | D90: 5.20 | E90: 5.20
B91: соль иодированная | D91: 0.65 | E91: 0.65
B92: повидло | D92: 20.00 | E92: 20.00
A93: Чай с сахаром | C93: 180/6 | F93: 0.06 | G93: 0.02 | H93: 6.01 | I93: 23.94 | J93: 0.03 | K93: №410,411 сб дошк 2016
B94: чай весовой | D94: 0.45 | E94: 0.45
B95: сахар | D95: 6.00 | E95: 6.00
B96: Вода | D96: 180.00 | E96: 180.00
A97: Сок (или нектар) | C97: 180 | D97: 180.00 | E97: 180.00 | F97: 0.90 | H97: 18.18 | I97: 76.00 | J97: 3.60 | K97: №418 сб дошк 2016
A98: в ассортименте
A99: Итого: | C99: 516 | F99: =F83+F97+F93 -> 6.58 | G99: =G83+G97+G93 -> 6.08 | H99: 49.42 | I99: 272.54 | J99: 4.29
A100: ВСЕГО: | C100: =C33+C38+C81+C99 -> 1799 | F100: =F33+F38+F81+F99 -> 42.16 | G100: =G33+G38+G81+G99 -> 45.54 | H100: =H33+H38+H81+H99 -> 207.45 | I100: =I33+I38+I81+I99 -> 1423.81 | J100: =J33+J38+J81+J99 -> 35.53
A102: День 2- ой
A103: Наименование блюд и | C103: Масса | D103: Кол - во | E103: Кол - во | F103: Пищевые вещества | I103: Энергетическая | J103: Витамин | K103: Сборник
A104: продуктов | C104: порции | D104: (в гр ) | E104: (в гр ) | I104: ценность | K104: рецептур
D105: брутто | E105: нетто | F105: белки | G105: жиры | H105: угл-ды | I105: Ккал | J105: С
B106: ЗАВТРАК
A107: Каша полбяная молочная с маслом сливочным | C107: 180/3 | F107: 3.73 | G107: 3.61 | H107: 30.86 | I107: 183.44 | J107: 0.86 | K107: ТТК №1Д
B108: Крупа полбяная | D108: 22.50 | E108: 22.50
B109: Молоко | D109: 90.00 | E109: 90.00
B110: вода | D110: 68.00 | E110: 68.00
B111: Сахар | D111: 2.50 | E111: 2.50
B112: соль иодированная | D112: 0.50 | E112: 0.50
B113: Масло сливочное | D113: 3.00 | E113: 3.00
A114: Какао с молоком | C114: 180 | F114: 3.67 | G114: 3.19 | H114: 10.87 | I114: 90.78 | J114: 1.43 | K114: №416 сб дошк2016
B115: Какао-порошок | D115: 2.00 | E115: 2.00
B116: Сахар | D116: 6.00 | E116: 6.00
B117: Молоко | D117: 110.00 | E117: 110.00
B118: Вода | D118: 80.00 | E118: 80.00
A119: Бутерброд с сыром, маслом сливочным | C119: 30/5/5 | F119: 3.64 | G119: 5.20 | H119: 14.83 | I119: 120.67 | J119: 0.04 | K119: №3 сб дошк2016
B120: Батон нарезной | D120: 30.00 | E120: 30.00
B121: Сыр | D121: 5.10 | E121: 5.00
B122: Масло сливочное | D122: 5.00 | E122: 5.00
A123: Итого: | C123: 403 | F123: =F107+F114+F119 -> 11.04 | G123: =G107+G114+G119 -> 12.00 | H123: 56.56 | I123: =I107+I114+I119 -> 394.89 | J123: 2.33
B124: 2 - ой ЗАВТРАК
A125: Молоко кипяченое | C125: 180 | F125: 5.23 | G125: 4.50 | H125: 8.65 | I125: 96.40 | J125: 2.34 | K125: №419 СБ дошк 2016
A126: (молоко) | B126: молоко | D126: 189.00 | E126: 180.00
A127: Итого: | C127: 180 | F127: =F125 -> 5.23 | G127: =G125 -> 4.50 | H127: 8.65 | I127: 96.40 | J127: 2.34
B128: ОБЕД
A129: Салат из соленых огурцов с луком | C129: 50 | F129: 0.43 | G129: 2.55 | H129: 1.30 | I129: 29.90 | J129: 2.78 | K129: №20, сб дошк2016
B130: Огурцы соленые | D130: 92,85/55,6 | E130: 44.50
B131: масса припущенных соленых огурцов | E131: 40.50
B132: Лук репчатый | D132: 9.40 | E132: 7.90
B133: масса бланшированного лука | E133: 7.50
B134: Масло растительное | D134: 2.50 | E134: 2.50
A135: Борщ со свежей капустой, картофелем на курином бульоне, со сметаной | C135: 180/7 | F135: 1.48 | G135: 4.59 | H135: 8.12 | I135: 85.97 | J135: 7.71 | K135: №63, сбдошк 2016
B136: Капуста свежая | D136: 20.00 | E136: 16.00
B137: Картофель | D137: 21.28 | E137: 16.00
B138: Морковь | D138: 12.50 | E138: 10.00
B139: Лук репчатый | D139: 9.52 | E139: 8.00
B140: Свекла | D140: 41.00 | E140: 32.00
B141: Сахар | D141: 2.40 | E141: 2.40
B142: Томат-паста | D142: 1.00 | E142: 1.00
B143: Масло растительное | D143: 4.00 | E143: 4.00
B144: соль иодированная | D144: 2.00 | E144: 2.00
B145: Бульон | D145: 140.00 | E145: 140.00
B146: Сметана | D146: 7.00 | E146: 7.00
A147: Фрикадельки куриные в молочном соусе | C147: 50/25 | F147: 7.87 | G147: 7.81 | H147: 6.87 | I147: 129.10 | K147: № 325 сб дошк 2016
B148: цыплята - бройлеры с/м | D148: 57.00 | E148: 37.00
B149: Хлеб пшеничный | D149: 9.00 | E149: 9.00
B150: Вода | D150: 12.00 | E150: 12.00
B151: соль иодированная | D151: 0.35 | E151: 0.35
B152: Масса полуфабриката | E152: 57.00
B153: Масло растительное | D153: 0.70 | E153: 0.70
B154: Соус молочный: | E154: 25.00
B155: Молоко | D155: 12.50 | E155: 12.50
B156: Масло сливочное | D156: 1.30 | E156: 1.30
B157: Мука пшеничная | D157: 1.3 | E157: 1.3
B158: Вода | D158: 12.50 | E158: 12.5
B159: Сахар | D159: 0.30 | E159: 0.3
B160: соль иодированная | D160: 0.3 | E160: 0.3
A161: Макаронные изделия отварные с маслом сливочным | C161: 130/3 | F161: 4.94 | G161: 2.72 | H161: 28.66 | I161: 154.96 | K161: №219 Сб дошк 2016
B162: макаронные изделия | D162: 45.5 | E162: 45.50
B163: вода | D163: 275.0 | E163: 275.0
B164: соль иодированная | D164: 1.3 | E164: 1.3
B165: Масло сливочное | D165: 3.0 | E165: 3.0
A166: Напиток из свежих яблок | C166: 180 | F166: 0.14 | G166: 0.14 | H166: 9.32 | I166: 39.92 | J166: 3.40 | K166: №390 СБ дошк 2016
B167: яблоки свежие | D167: 34.00 | E167: 30.00
B168: вода | D168: 183.00 | E168: 183.00
B169: сахар | D169: 6.00 | E169: 6.00
A170: Хлеб пшеничный | C170: 20 | D170: 20.00 | E170: 20.00 | F170: 1.52 | G170: 0.16 | H170: 9.84 | I170: 47.00 | J170: 0.00 | K170: табл 6 стр 134,Дели + 2012
A171: Хлеб ржаной | C171: 35 | D171: 35.00 | E171: 35.00 | F171: 2.31 | G171: 0.42 | H171: 13.85 | I171: 69.23 | K171: табл 6 стр 144,Дели + 2012
A172: Итого: | C172: 680 | F172: =F171+F170+F166+F161+F147+F135+F129 -> 18.68 | G172: =G171+G170+G166+G161+G147+G135+G129 -> 18.38 | H172: 77.96 | I172: 556.08 | J172: 13.89
B173: ПОЛДНИК
A174: Булочка дорожная | C174: 75 | F174: 4.79 | G174: 6.87 | H174: 46.60 | I174: 240.75 | K174: №453 сб дошк2016
B175: Мука пшеничная | D175: 45.50 | E175: 45.00
B176: мука пшеничная на подпыл | D176: 1.50 | E176: 1.50
B177: Сахар | D177: 9.00 | E177: 9.00
B178: Масло сливочное | D178: 9.75 | E178: 9.75
B179: соль иодированная | D179: 0.45 | E179: 0.45
B180: дрожжи сухие | D180: 0.30 | E180: 0.30
B181: вода | D181: 23.00 | E181: 23.00
B182: масса полуфабриката | E182: 85.50
B183: для крошки:
B184: мука пшеничная | D184: 1.80 | E184: 1.80
B185: масло сливочное | D185: 1.50 | E185: 1.50
B186: масса крошки | E186: 3.00
B187: масло растительное для смазки изделй | D187: 1.00 | E187: 1.00
A188: Чай с сахаром и лимоном | C188: 180/6/7 | F188: 0.12 | G188: 0.02 | H188: 6.23 | I188: 26.12 | J188: 2.83 | K188: №412 сб дошк 2016
B189: чай весовой | D189: 0.45 | E189: 0.45
B190: Сахар | D190: 6.00 | E190: 6.00
B191: лимон | D191: 8.00 | E191: 7.00
B192: Вода | D192: 180.00 | E192: 180.00
A193: Фрукты свежие | C193: 100 | D193: 100 | E193: 100 | F193: 2.70 | G193: 2.88 | H193: 12.47 | I193: 86.02 | J193: 10.00 | K193: №386 СБ
A194: (яблоки,или апельсин, или банан,или мандарин ) | K194: дошк.2016
A195: Итого: | C195: 206 | F195: =F174+F193+F188 -> 7.61 | G195: =G174+G193+G188 -> 9.77 | H195: 65.30 | I195: 352.89 | J195: 12.83
A196: ВСЕГО: | C196: =C123+C127+C172+C195 -> 1469 | F196: =F123+F127+F172+F195 -> 42.56 | G196: =G123+G127+G172+G195 -> 44.65 | H196: =H123+H127+H172+H195 -> 208.46 | I196: =I123+I127+I172+I195 -> 1400.25 | J196: =J123+J127+J172+J195 -> 31.39
A198: День 3 - ий
A199: Наименование блюд и | C199: Масса | D199: Кол - во | E199: Кол - во | F199: Пищевые вещества | I199: Энергетическая | J199: Витамин | K199: Сборник
A200: продуктов | C200: порции | D200: (в гр ) | E200: (в гр ) | I200: ценность | K200: рецептур
D201: брутто | E201: нетто | F201: белки | G201: жиры | H201: угл-ды | I201: Ккал | J201: С
B202: ЗАВТРАК
A203: Каша ячневая молочная с маслом сливочным | C203: 180/3 | F203: 3.91 | G203: 7.24 | H203: 25.02 | I203: 180.86 | K203: ТТК №10Д
B204: Крупа ячневая | D204: 22.5 | E204: 22.5
B205: Молоко | D205: 90 | E205: 90
B206: Вода | D206: 68 | E206: 68
B207: Сахар | D207: 2.5 | E207: 2.5
... 761 more rows

Sheet Меню сокр
A1: РОТАЦИЯ по меню ДОУ с 8-10,5ч пребыванием 10дн ЗОП
A2: 1-ая неделя
A3: 1 день | D3: 2 день | G3: 3 день | J3: 4 день | M3: 5 день
A4: Наименование блюд | B4: Выход,г | C4: Выход,г | D4: Наименование блюд | E4: Выход,г | F4: Выход,г | G4: Наименование блюд | H4: Выход,г | I4: Выход,г | J4: Наименование блюд | K4: Выход,г | L4: Выход,г | M4: Наименование блюд | N4: Выход,г | O4: Выход,г
B5: 1-3 лет | C5: 3-7 лет | E5: 1-3 лет | F5: 3-7 лет | H5: 1-3 лет | I5: 3-7 лет | K5: 1-3 лет | L5: 3-7 лет | N5: 1-3 лет | O5: 3-7 лет
A6: ЗАВТРАК
A7: Каша "Дружба" молочная с маслом сливочным | B7: 140/3 | C7: 180/5 | D7: Каша полбяная молочная с маслом сливочным | E7: 140/3 | F7: 180/3 | G7: Каша геркулесовая молочная с маслом сливочным | H7: 140/3 | I7: 180/3 | J7: Омлет натуральный | K7: 130 | L7: 150 | M7: Суп молочный со звездочками | N7: 180 | O7: 200
A8: Кофейный напиток с молоком | B8: 180 | C8: 180 | D8: Какао с молоком | E8: 180 | F8: 180 | G8: Чай с молоком, сахаром | H8: 180/6 | I8: 180/6 | J8: Кофейный напиток с молоком | K8: 180 | L8: 180 | M8: Какао с молоком | N8: 150 | O8: 180
A9: Бутерброд с маслом сливочным | B9: 25/5 | C9: 30/5 | D9: Бутерброд с сыром, маслом сливочным | E9: 25/5/5 | F9: 30/5/5 | G9: Бутерброд с маслом сливочным | H9: 25/5 | I9: 30/5 | J9: Бутерброд с маслом сливочным, с повидлом | K9: 25/5/20 | L9: 30/10/20 | M9: Бутерброд с сыром, маслом сливочным | N9: 25/5/5 | O9: 30/5/5
J10: Хлеб пшеничный | L10: 25
A11: Итого: | B11: 353 | C11: 400 | D11: Итого: | E11: 358 | F11: 403 | G11: Итого: | H11: 359 | I11: 404 | J11: Итого: | K11: 360 | L11: 415 | M11: Итого: | N11: 365 | O11: 420
A12: 2-Й ЗАВТРАК
A13: Кисломолочный напиток | B13: 150/2 | C13: 180/3 | D13: Кисель | E13: 150 | F13: 180 | G13: Кисломолочный напиток | H13: 150 | I13: 180 | J13: Кисломолочный напиток | K13: 150/2 | L13: 180/3 | M13: Кисломолочный напиток | N13: 150 | O13: 180
A14: Итого: | B14: 152 | C14: 183 | D14: Итого: | E14: 150 | F14: 180 | G14: Итого: | H14: 150 | I14: 180 | J14: Итого: | K14: 152 | L14: 183 | M14: Итого: | N14: 150 | O14: 180
A15: ОБЕД
A16: Салат из моркови с яблоками | B16: 40 | C16: 60 | D16: Икра кабачковая | E16: 30 | F16: 50 | G16: Салат из свеклы с сыром | H16: 30 | I16: 50 | J16: Салат из моркови с яблоками | K16: 40 | L16: 60 | M16: Капуста тушёная(доп .гарнир) | O16: 50
A17: Суп со звездочками и картофелем, с куриными фрикадельками | B17: 150/10 | C17: 180/15 | D17: Борщ со свежей капустой, картофелем на курином бульоне, со сметаной | E17: 150/7 | F17: 180/7 | G17: Суп -лапша на курином бульоне с мясом птицы | H17: 150/10 | I17: 180/10 | J17: Суп картофельный с горохом на мясном бульоне | K17: 150 | L17: 200 | M17: Суп картофельный с крупой с куриными фрикадельками | N17: 150/10 | O17: 180/10
A18: Котлеты рубленные из говядины | B18: 50 | C18: 70 | D18: Фрикадельки куриные в молочном соусе | E18: 40/20 | F18: 50/25 | G18: Фрикадельки рыбные отварные | H18: 60 | I18: 80 | J18: Плов из отварной говядины | K18: 150 | L18: 200 | M18: Суфле рыбное в молочном соусе | N18: 50 | O18: 70
A19: Пюре Картофельное | B19: 120 | C19: 140 | D19: Макаронные изделия отварные с маслом сливочным | E19: 110/3 | F19: 130/3 | G19: Картофель тушёный с овощами в соусе | H19: 120 | I19: 140 | M19: Пюре Картофельное | N19: 120 | O19: 140
A20: Напиток из сухофруктов | B20: 150 | C20: 180 | D20: Компот из свежих яблок | E20: 150 | F20: 180 | G20: Напиток из шиповника | H20: 150/5 | I20: 180/6 | J20: Напиток из сухофруктов | K20: 150 | L20: 180 | M20: Компот из яблок и изюма | N20: 150 | O20: 180
A21: Хлеб пшеничный | B21: 20 | C21: 20 | D21: Хлеб пшеничный | E21: 20 | F21: 20 | J21: Хлеб пшеничный | L21: 25 | M21: Хлеб пшеничный | N21: 20 | O21: 20
A22: Хлеб ржаной | B22: 30 | C22: 35 | D22: Хлеб ржаной | E22: 30 | F22: 35 | G22: Хлеб ржаной | H22: 30 | I22: 35 | J22: Хлеб ржаной | K22: 30 | L22: 35 | M22: Хлеб ржаной | N22: 30 | O22: 35
A23: Итого: | B23: 570 | C23: 700 | D23: Итого: | E23: 560 | F23: 680 | G23: Итого: | H23: 555 | I23: 681 | J23: Итого: | K23: 520 | L23: 700 | M23: Итого: | N23: 570 | O23: 695
A24: ПОЛДНИК
A25: Запеканка творожная с повидлом | B25: 110/20 | C25: 130/20 | D25: Омлет натуральный | E25: 50 | F25: 150 | G25: каша гречневая вязкой, с маслом сливочным | H25: 50/110/2 | I25: 70/130/3 | J25: Рагу из овощей | K25: 120 | L25: 150 | M25: Макаронные изделия отварные с сыром | N25: 50 | O25: 150
A26: Чай с сахаром | B26: 150/5 | C26: 180/6 | D26: Чай с сахаром и лимоном | E26: 150/5/5 | F26: 180/6/7 | G26: Чай с мармеладом | H26: 170/10 | I26: 170/10 | J26: Чай с сахаром ,печенье | K26: 150/5 | L26: 180/6 | M26: Чай с сахаром и лимоном | N26: 150/5/5 | O26: 180/6/7
D27: Хлеб пшеничный | E27: 25 | F27: 25 | G27: Хлеб пшеничный | H27: 25 | I27: 20 | J27: Хлеб пшеничный | K27: 20 | L27: 20 | M27: Хлеб пшеничный | O27: 25
A28: Сок | B28: 200 | C28: 200 | D28: Фрукты | E28: 100 | F28: 100 | H28: 200 | I28: 180 | J28: Фрукты | K28: 100 | L28: 100 | M28: Сок | N28: 200 | O28: 200
A29: Итого: | B29: 485 | C29: 516 | D29: Итого: | E29: 310 | F29: 206 | G29: Итого: | H29: 567 | I29: 583 | J29: Итого: | K29: 445 | L29: 506 | M29: Итого: | N29: 410 | O29: 448
A30: Всего: | B30: =B29+B23+B14+B11 -> 1560 | C30: =C29+C23+C14+C11 -> 1799 | D30: Всего: | E30: =E29+E23+E14+E11 -> 1378 | F30: =F29+F23+F14+F11 -> 1469 | G30: Всего: | H30: =H29+H23+H14+H11 -> 1631 | I30: =I29+I23+I14+I11 -> 1848 | J30: Всего: | K30: =K29+K23+K14+K11 -> 1477 | L30: =L29+L23+L14+L11 -> 1804 | M30: Всего: | N30: =N29+N23+N14+N11 -> 1495 | O30: =O29+O23+O14+O11 -> 1743
A32: 2-ая неделя
A33: 6 день | D33: 7 день | G33: 8 день | J33: 9 день | M33: 10 день
A34: Наименование блюд | B34: Выход,г | C34: Выход,г | D34: Наименование блюд | E34: Выход,г | F34: Выход,г | G34: Наименование блюд | H34: Выход,г | I34: Выход,г | J34: Наименование блюд | K34: Выход,г | L34: Выход,г | M34: Наименование блюд | N34: Выход,г | O34: Выход,г
B35: 1-3 лет | C35: 3-7 лет | E35: 1-3 лет | F35: 3-7 лет | H35: 1-3 лет | I35: 3-7 лет | K35: 1-3 лет | L35: 3-7 лет | N35: 1-3 лет | O35: 3-7 лет
A36: ЗАВТРАК
A37: Каша пшённая молочная с маслом сливочным | B37: 140/3 | C37: 180/3 | D37: Каша ячневая молочная с маслом сливочным | E37: 140/3 | F37: 180/3 | G37: Каша манная молочная с маслом сливочным | H37: 140/3 | I37: 180/3 | J37: Каша пшеничная молочная с маслом сливочным | K37: 140/3 | L37: 180/3 | M37: Каша геркулесовая молочная с маслом сливочным | N37: 140/4 | O37: 180/3
A38: Чай с молоком,с сахаром | B38: 180 | C38: 180 | D38: Кофейный напиток с молоком | E38: 180/6 | F38: 180/6 | G38: Какао с молоком | H38: 180/6 | I38: 180/6 | J38: Чай с молоком,с сахаром | K38: 180/6 | L38: 180/6 | M38: Кофейный напиток с молоком | N38: 180 | O38: 180
A39: Бутерброд с маслом сливочным | B39: 25/5/20 | C39: 30/10/20 | D39: Бутерброд с маслом сливочным,с повидлом | E39: 25/5 | F39: 30/5 | G39: Бутерброд маслом сливочным | H39: 25/5/5 | I39: 30/5/5 | J39: Бутерброд с маслом сливочным,с сыром | K39: 25/5 | L39: 30/5 | M39: Бутерброд маслом сливочным | N39: 25/5/5 | O39: 30/5/5
A41: Итого: | B41: 373 | C41: 423 | D41: Итого: | E41: 359 | F41: 404 | G41: Итого: | H41: 364 | I41: 409 | J41: Итого: | K41: 359 | L41: 404 | M41: Итого: | N41: 359 | O41: 403
A42: 2-Й ЗАВТРАК
A43: Кисломолочный напиток | B43: 150/2 | C43: 180/3 | D43: Кисель | E43: 150 | F43: 180 | G43: Кисломолочный напиток | H43: 150 | I43: 180 | J43: Кисломолочный напиток | K43: 150/2 | L43: 180/3 | M43: Кисломолочный напиток | N43: 150 | O43: 180
A44: Итого: | B44: 152 | C44: 183 | D44: Итого: | E44: 150 | F44: 180 | G44: Итого: | H44: 150 | I44: 180 | J44: Итого: | K44: 152 | L44: 183 | M44: Итого: | N44: 150 | O44: 180
A45: ОБЕД
A46: Салат из овощей с яблоками и свеклой | B46: 30 | C46: 50 | D46: Салат из зелёного горошка к/с | E46: 40 | F46: 60 | G46: Салат из отварной свеклы | H46: 40 | I46: 60 | J46: Икра кабачковая | K46: 40 | L46: 60 | M46: Салат из припущеной моркови | N46: 40 | O46: 60
A47: Суп из овощей на мясном бульоне,со сметаной | B47: 150/10 | C47: 180/10 | D47: Суп картофельный с мясом птицы | E47: 150/10/5 | F47: 180/10/7 | G47: Щи со свежей капустой и картофелем с мясными фрикадельками, со сметаной | H47: 150/10/6 | I47: 180/10/7 | J47: Рассольник ленинградский с куриными фрикадельками со сметаной | K47: 150 | L47: 180 | M47: Суп -лапша на курином бульоне | N47: 150/5 | O47: 180/7
A48: Гуляш из отварной говядины | B48: 110/40 | C48: 150/50 | D48: Рагу из овощей с мясны фаршом | E48: 40/20 | F48: 50/25 | G48: Тефтели куриные с рисом в сметанно-томатном соусе | H48: 30/30 | I48: 40/40 | J48: Котлеты рыбные | K48: 50 | L48: 70 | M48: Биточки Домашние | N48: 40/20 | O48: 50/25
A49: Каша гречневая | B49: 120 | C49: 130 | G49: Вермишель отварная с маслом сливочном | H49: 120 | I49: 140 | J49: Пюре картофельное | K49: 120 | L49: 130 | M49: Капуста тушёная | N49: 110 | O49: 130
A50: Компот из урюка | B50: 150 | C50: 180 | D50: Напиток из свежих фруктов | E50: 150 | F50: 180 | G50: Компот из изюма и яблок | H50: 150 | I50: 180 | J50: Компот из урюка | K50: 150 | L50: 180 | M50: Напиток из сухофруктов | N50: 150 | O50: 180
D51: Хлеб пшеничный | E51: 20 | F51: 20 | J51: хлеб ржаной | K51: 20 | L51: 20
A52: Хлеб ржаной | B52: 30 | C52: 35 | D52: Хлеб ржаной | E52: 30 | F52: 35 | G52: Хлеб ржаной | H52: 30 | I52: 35 | J52: Хлеб ржаной | K52: 30 | L52: 35 | M52: Хлеб ржаной | N52: 40 | O52: 45
A53: Итого: | B53: 540 | C53: 675 | D53: Итого: | E53: 558 | F53: 680 | G53: Итого: | H53: 576 | I53: 702 | J53: Итого: | K53: 540 | L53: 655 | M53: Итого: | N53: 555 | O53: 677
A54: ПОЛДНИК
A55: Ватрушка королевская | B55: 50 | C55: 150 | D55: Булочка дорожная | E55: 40 | F55: 50 | G55: Пюре из бобовых и картофеля с маслом сливочным | H55: 130 | I55: 150 | J55: Сырники из творога с молоком сгущёным | K55: 130 | L55: 150 | M55: Слойка сладкая | N55: 120 | O55: 140
A56: Напиток из шиповника | B56: 150/5 | C56: 180/6 | D56: Чай с сахаром | E56: 150/5 | F56: 180/6 | G56: Чай с сахаром и лимоном | H56: 150 | I56: 180 | J56: Напиток из шиповника | K56: 150/5 | L56: 180/6 | M56: Чай с сахаром | N56: 150/5/5 | O56: 180/6/7
G57: Хлеб пшеничный,печень | I57: 20/20
A58: Фрукты | B58: 100 | C58: 100 | D58: Сок | E58: 150 | F58: 200 | G58: Фрукты | H58: 100 | I58: 100 | J58: сок | K58: 150 | L58: 200 | M58: Фрукты | N58: 100 | O58: 100
A59: Итого: | B59: 405 | C59: 441 | D59: Итого: | E59: 460 | F59: 513 | G59: Итого: | H59: 400 | I59: 435 | J59: Итого: | K59: 405 | L59: 316 | M59: Итого: | N59: 530 | O59: 588
A60: Всего: | B60: =B59+B53+B44+B41 -> 1470 | C60: =C59+C53+C44+C41 -> 1722 | D60: Всего: | E60: =E59+E53+E44+E41 -> 1527 | F60: =F59+F53+F44+F41 -> 1777 | G60: Всего: | H60: =H59+H53+H44+H41 -> 1490 | I60: =I59+I53+I44+I41 -> 1726 | J60: Всего: | K60: =K59+K53+K44+K41 -> 1456 | L60: =L59+L53+L44+L41 -> 1558 | M60: Всего: | N60: =N59+N53+N44+N41 -> 1594 | O60: =O59+O53+O44+O41 -> 1848
